Cogmind - Beta 9.6 @@@ ROGUE MODE // 2020.06.29 @ 13:38:36 Player: Dhoby_Ghaut Result: Destroyed by P-80 Master with Gamma Rifle Performance ------------- Evolutions (7) 3500 Regions Visited (21) 4200 Robots Destroyed (114) 570 Value Destroyed (3927) 3927 Prototype IDs (5) 100 Alien Tech Used (2) 400 Bonus (6328) 6328 TOTAL SCORE: 19025 Bonus ------- High Alert Combat Kills 179 Follower Combat Kills 664 Entered Garrisons 200 Used RIF Installer 500 Used Core Reset Matrix 3000 Met Sigix 2000 Friendly Fire -215 Cogmind --------- Core Integrity 0/1300 Matter 300/300 Energy 170/170 System Corruption 35% Temperature Cool (0) Movement Hovering (58) Location -3/Quarantine Parts ------- > --- POWER (3) -------- Light Antimatter Reactor > --- PROPULSION (7) --- Gyrokinetic Inverter Gyrokinetic Inverter Gyrokinetic Inverter Gyrokinetic Inverter > --- UTILITY (9) ------ Medium Storage Unit Advanced Signal Interpreter Advanced Terrain Scan Processor Experimental Melee Analysis Suite Advanced Hacking Suite > --- WEAPON (2) ------- (None) > --- INVENTORY (8) ---- Particle Reactor Advanced Heat Sink Small Storage Unit Advanced Sensor Array Cloaking Device Gamma Rifle Sigix Containment Pod Peak State ------------ > --- POWER ------------ Micro Fission Core Light Antimatter Reactor Light Antimatter Reactor > --- PROPULSION ------- Gyrokinetic Inverter Gyrokinetic Inverter Gyrokinetic Inverter Improved Gyrokinetic Inverter Improved Linear Gravjet Nuclear Pulse Thruster Q-thruster > --- UTILITY ---------- Advanced Heat Sink High-capacity Storage Unit Long-range Sensor Array Advanced Terrain Scanner Advanced Terrain Scan Processor Improved Melee Analysis Suite Advanced Melee Analysis Suite Advanced Hacking Suite Improved System Shield > --- WEAPON ----------- Lance Enhanced Force Lance > --- INVENTORY -------- Particle Reactor Xenon Bombardment Thruster Xenon Bombardment Thruster Improved Cesium-ion Thruster Q-thruster Small Storage Unit Medium Storage Unit Experimental Melee Analysis Suite Cloaking Device Improved Propulsion Shielding Heavy Shock Bomb Launcher [Rating: 121] Favorites ----------- Power Deuterium Engine Engine Deuterium Engine Power Core Micro Fission Core Reactor Light Antimatter Reactor Propulsion Xenon Bombardment Thruster Treads Light Treads Leg Aluminum Leg Wheel Compact Wheel Hover Unit Gyrokinetic Inverter Flight Unit Xenon Bombardment Thruster Utility Large Storage Unit Device Long-range Sensor Array Storage Large Storage Unit Processor Advanced Terrain Scan Processor Hackware System Shield Protection Improved Propulsion Shielding Weapon Autogun Energy Gun EM Pulse Gun Energy Cannon Nova Cannon Ballistic Gun Autogun Ballistic Cannon Advanced Assault Cannon Launcher Advanced EMP Blaster Slashing Weapon Ionic Axe Piercing Weapon Lance Build | -11 -10 -10 -10 -9 -8 -8 -8 -7 -7 -7 -7 -7 -6 -5 -4 -4 -4 -4 -3 -3 -3 ------- Run | Scr Mat Min Exi Min Mat Sto Gar Fac Was Fac Low Low Fac Fac Fac Upp Upp War Pro Res Qua Slots Evolved 14 | . . . . . 4 . . 2 . . . . 2 2 2 . . . . 2 . Power 2 | . . . . . . . . 1 . . . . . . . . . . . 1 . Propulsion 5 | . . . . . 2 . . . . . . . . 1 1 . . . . 1 . Utility 7 | . . . . . 2 . . 1 . . . . 2 1 1 . . . . . . Weapon . | . . . . . . . . . . . . . . . . . . . . . . Parts Attached 219 | 6 8 13 . 2 20 4 11 9 5 23 1 . 11 16 8 1 12 . 6 29 34 Power 34 | 1 . 1 . . 2 . 1 1 . 3 . . 1 1 3 . 1 . 1 6 12 Engine 12 | 1 . 1 . . 2 . 1 1 . . . . . 1 1 . . . . . 4 Core 8 | . . . . . . . . . . 3 . . 1 . 1 . . . . 1 2 Reactor 14 | . . . . . . . . . . . . . . . 1 . 1 . 1 5 6 Propulsion 59 | 2 2 5 . 2 6 1 1 1 5 5 . . 3 3 3 . 1 . . 11 8 Treads 6 | . . . . . 4 1 1 . . . . . . . . . . . . . . Leg 1 | . 1 . . . . . . . . . . . . . . . . . . . . Wheel 16 | 2 1 5 . 2 2 . . 1 . . . . . . . . . . . . 3 Hover 13 | . . . . . . . . . . 1 . . . . 3 . . . . 4 5 Flight 23 | . . . . . . . . . 5 4 . . 3 3 . . 1 . . 7 . Utility 77 | 1 3 1 . . 4 . 2 3 . 10 1 . 6 8 2 1 10 . 5 10 10 Device 17 | . . . . . . . . . . 4 1 . 2 1 1 . 5 . 1 1 1 Storage 23 | 1 3 1 . . 1 . . . . 2 . . . 2 1 1 3 . 1 4 3 Processor 13 | . . . . . 1 . . . . 1 . . 1 1 . . 1 . 2 4 2 Hackware 6 | . . . . . . . . . . 2 . . 1 1 . . . . 1 . 1 Protection 18 | . . . . . 2 . 2 3 . 1 . . 2 3 . . 1 . . 1 3 Artifact . | . . . . . . . . . . . . . . . . . . . . . . Weapon 49 | 2 3 6 . . 8 3 7 4 . 5 . . 1 4 . . . . . 2 4 Energy Gun 7 | 1 1 1 . . . . 1 . . 3 . . . . . . . . . . . Energy Cannon 1 | . . . . . . . . . . . . . . . . . . . . . 1 Ballistic Gun 17 | 1 2 4 . . 4 2 4 . . . . . . . . . . . . . . Ballistic Cannon 2 | . . . . . . . . 2 . . . . . . . . . . . . . Launcher 12 | . . 1 . . 4 . 2 2 . . . . 1 1 . . . . . 1 . Special Weapon . | . . . . . . . . . . . . . . . . . . . . . . Impact Weapon . | . . . . . . . . . . . . . . . . . . . . . . Slashing Weapon 6 | . . . . . . 1 . . . 2 . . . 1 . . . . . . 2 Piercing Weapon 4 | . . . . . . . . . . . . . . 2 . . . . . 1 1 Special Melee Weapon . | . . . . . . . . . . . . . . . . . . . . . . Unidentified Prototypes 7 | . . . . . 1 . . . . 1 . . . 1 . . . . . 1 3 Parts Lost 82 | . 4 4 . . 5 1 7 3 6 . . . 2 4 1 . 6 . . 17 22 Power 17 | . . . . . . . 1 . . . . . . 1 1 . . . . 5 9 Propulsion 31 | . 1 . . . 3 1 2 1 2 . . . 2 3 . . 3 . . 7 6 Utility 17 | . . . . . 1 . 1 1 3 . . . . . . . 2 . . 4 5 Weapon 17 | . 3 4 . . 1 . 3 1 1 . . . . . . . 1 . . 1 2 Highest Loss Streak 14 | . 3 2 . . 4 1 4 2 6 . . . 1 4 1 . 4 . . 14 13 Average Slot Usage (%) 89 | . 97 99 100 100 91 93 97 86 47 66 92 92 93 94 86 100 95 78 77 88 76 Engine 5 | . 14 14 14 14 9 9 8 14 7 . . . . . 1 . . . . . 4 Core 3 | . . . . . . . . . . 8 15 15 13 10 5 5 5 5 . 3 1 Reactor 1 | . . . . . . . . . . . . . . . 1 5 4 . 5 6 2 Treads 6 | . . . . . 6 28 34 18 7 . . . . . . . . . . . . Wheel 6 | . 20 28 28 28 23 2 . 5 3 . . . . . . . . . . . 3 Hover 5 | . . . . . . . . . . 4 . . . . 7 15 14 5 5 16 19 Flight 8 | . . . . . . . . . 3 18 30 30 26 26 15 15 14 15 15 12 4 Device 4 | . . . . . . . . . . 8 6 7 10 5 6 10 14 26 14 11 . Storage 16 | . 26 28 28 28 27 27 27 23 10 5 15 15 13 12 7 10 9 5 5 4 5 Processor 5 | . . . . . 1 . . . . 1 . . 1 5 5 5 8 10 15 14 20 Hackware 5 | . . . . . . . . . . 11 15 15 14 15 15 15 9 5 10 8 6 Protection 4 | . . . . . 5 9 8 12 6 2 . . 5 4 9 5 2 . . 1 1 Ballistic Gun 7 | . 22 25 28 28 14 17 16 2 . . . . . . . . . . . . . Slashing Weapon 1 | . . . . . . . . . . 2 7 7 6 2 5 5 2 . . . 2 Piercing Weapon 1 | . . . . . . . . . . . . . . 6 5 5 5 5 5 5 1 Naked Turns 2 | . . . . . . . . . 2 . . . . . . . . . . . . Heaviest Build 110 | 11 43 59 59 59 89 86 89 110 110 25 25 24 27 37 42 45 48 20 23 77 79 Greatest Support 98 | 26 26 32 32 32 60 80 80 60 40 29 29 29 30 38 50 50 50 23 23 78 98 Greatest Overweight (x) 8 | . 4 2 1 1 5 1 1 8 2 3 . . . 1 1 . 2 . . 4 4 Average Overweight (x) . | . 1 1 1 1 2 1 . 2 . . . . . . . . . . . . . Largest Inventory Capacity 24 | 6 16 18 18 18 24 24 24 24 24 8 8 8 8 12 8 10 12 6 14 12 16 Average Capacity 14 | 5 13 16 18 18 23 24 24 24 14 5 8 8 8 9 7 8 9 6 6 9 9 Most Carried 24 | 6 16 16 18 18 24 24 22 24 23 8 8 8 8 12 8 10 10 6 6 12 15 Average Carried 12 | 3 11 15 17 17 19 20 19 22 13 4 8 8 7 8 6 7 9 6 5 8 7 Final Capacity 24 | 6 16 18 18 18 24 24 24 24 4 8 8 8 8 6 8 10 6 6 6 6 8 Final Carried 24 | 6 16 15 18 18 24 21 22 23 4 8 8 8 7 6 8 10 6 6 6 6 8 Class Distribution -------------------- 20% | Mutant 17% | Hauler-Mutant 16% | Hacker-Mutant 11% | Hacker-Sprinter 9% | Scavenger-Mutant 8% | Hacker-Ninja 4% | Scavenger-Ninja 4% | Hacker-Scout Dominant Class ---------------- Mutant | -10/Materials Mutant | -10/Mines Mutant | -10/Exiles Mutant | -9/Mines Hauler-Mutant | -8/Materials Hauler-Mutant | -8/Storage Scavenger-Mutant | -8/Garrison Hauler-Mutant | -7/Factory Mutant | -7/Waste Hacker-Mutant | -7/Factory Hacker-Sprinter | -7/Lower Caves Hacker-Sprinter | -7/Lower Caves Hacker-Sprinter | -6/Factory Hacker-Sprinter | -5/Factory Hacker-Mutant | -4/Factory Hacker-Mutant | -4/Upper Caves Scavenger-Ninja | -4/Upper Caves Infiltrator-Ninja | -4/Warlord Hacker-Ninja | -3/Proximity Caves Hacker-Scout | -3/Research Hacker-Mutant | -3/Quarantine Resources | -11 -10 -10 -10 -9 -8 -8 -8 -7 -7 -7 -7 -7 -6 -5 -4 -4 -4 -4 -3 -3 -3 ----------- Run | Scr Mat Min Exi Min Mat Sto Gar Fac Was Fac Low Low Fac Fac Fac Upp Upp War Pro Res Qua Matter Collected 3366 | 217 336 260 31 8 443 155 241 88 . 207 39 . 81 144 118 193 87 . 109 244 365 Remotely . | . . . . . . . . . . . . . . . . . . . . . . Salvage Created 5230 | . 437 332 . 51 732 272 600 221 . 207 . . 146 24 118 . 136 . . 697 1257 Parts 280 | . 29 22 . 3 48 11 28 12 . 10 . . 8 2 9 . 2 . . 34 62 Haulers Intercepted 1 | . . . . . 1 . . . . . . . . . . . . . . . . Recyclers Shooed 3 | . . . . . 1 . . . . . . . . . . . . . . . 2 Parts Field Recycled . | . . . . . . . . . . . . . . . . . . . . . . Retrieved Matter . | . . . . . . . . . . . . . . . . . . . . . . Parts Self-Destructed 6 | . . . . . . . . . . . . . . . . . 6 . . . . Prevented . | . . . . . . . . . . . . . . . . . . . . . . Kills | -11 -10 -10 -10 -9 -8 -8 -8 -7 -7 -7 -7 -7 -6 -5 -4 -4 -4 -4 -3 -3 -3 ------- Run | Scr Mat Min Exi Min Mat Sto Gar Fac Was Fac Low Low Fac Fac Fac Upp Upp War Pro Res Qua Combat Hostiles Destroyed 77 | . 8 9 . . 12 5 11 4 . 1 . . 7 . 2 . . . . 8 10 Melee 22 | . . . . . . . . . . 1 . . 4 . 2 . . . . 5 10 Guns 28 | . 8 6 . . 5 5 4 . . . . . . . . . . . . . . AOE 26 | . . 3 . . 7 . 6 4 . . . . 3 . . . . . . 3 . Classes Destroyed 13 | . 5 1 . . 5 . 1 . . . . . . . 1 . . . . . . Worker 18 | . 4 . . . . . . 3 . 2 . . . 1 1 . . . . 2 5 Builder 4 | . . 1 . . 1 . . . . . . . . . . . . . . . 2 Hauler 1 | . . . . . 1 . . . . . . . . . . . . . . . . Recycler 10 | . 1 1 . 1 1 . . . . 1 . . . . . . . . . 2 3 Operator 1 | . . . . . 1 . . . . . . . . . . . . . . . . Watcher 2 | . 1 . . . . . . . . . . . . . . . . . . . 1 Swarmer 23 | . 3 3 . . . . . 2 . . . . 7 . . . . . . 6 2 Grunt 32 | . 5 6 . . 5 3 9 2 . . . . . . . . . . . . 2 Brawler 1 | . . . . . . . 1 . . . . . . . . . . . . . . Duelist 1 | . . . . . 1 . . . . . . . . . . . . . . . . Sentry 10 | . . . . . 4 2 1 . . 1 . . . . . . . . . 2 . Hunter 5 | . . . . . 2 . 1 . . . . . . . . . . . . . 2 Programmer 6 | . . . . . . . . . . . . . . . 2 . . . . . 4 Best Kill Streak 5 | . 4 5 . 1 4 3 4 4 . 2 . . 4 1 2 . . . . 5 5 Combat Bots Only 5 | . 3 4 . . 4 3 4 4 . 1 . . 4 . 2 . . . . 3 5 Max Kills in Single Turn 3 | . 1 2 . 1 3 1 3 2 . 1 . . 3 1 1 . . . . 2 1 Gunslinging . | . . . . . . . . . . . . . . . . . . . . . . Exploded 3 | . . 1 . . 2 . 3 2 . . . . 3 . . . . . . 1 . Melee 1 | . . . . . . . . . . 1 . . 1 . 1 . . . . 1 1 Uniques/NPCs Destroyed . | . . . . . . . . . . . . . . . . . . . . . . Combat | -11 -10 -10 -10 -9 -8 -8 -8 -7 -7 -7 -7 -7 -6 -5 -4 -4 -4 -4 -3 -3 -3 -------- Run | Scr Mat Min Exi Min Mat Sto Gar Fac Was Fac Low Low Fac Fac Fac Upp Upp War Pro Res Qua Damage Taken 10648 | . 590 562 . . 937 286 974 400 262 71 . . 370 462 260 307 372 . . 1646 3149 Core 2467 | . 66 77 . . 82 28 173 61 160 17 . . 77 208 119 66 31 . . 334 968 Absorbed by Shields . | . . . . . . . . . . . . . . . . . . . . . . Core Remaining (%) 72 | 100 . . . 42 . . 48 . . . . 66 90 79 . . . . 81 . . Volleys Fired 192 | . 48 30 . 1 34 16 32 25 . . . . 1 . . . . . . 5 . Largest 2 | . 2 2 . 2 2 2 2 2 . . . . 1 . . . . . . 1 . Hottest 73 | . 73 60 . 46 72 46 63 63 . . . . 43 . . . . . . 46 . Shots Fired 347 | . 90 57 . 2 68 32 60 31 . 1 . . 1 . . . . . . 5 . Gun 307 | . 90 53 . 2 63 32 54 12 . 1 . . . . . . . . . . . Cannon 11 | . . . . . . . . 11 . . . . . . . . . . . . . Launcher 29 | . . 4 . . 5 . 6 8 . . . . 1 . . . . . . 5 . Special . | . . . . . . . . . . . . . . . . . . . . . . Kinetic 284 | . 68 50 . 2 63 32 52 17 . . . . . . . . . . . . . Thermal 22 | . 22 . . . . . . . . . . . . . . . . . . . . Explosive 5 | . . 4 . . . . . . . . . . 1 . . . . . . . . Electromagnetic 36 | . . 3 . . 5 . 8 14 . 1 . . . . . . . . . 5 . Robot Hit Streak 34 | . 9 13 . 3 13 34 9 7 . . . . . . . . . . . 2 . Robot Miss Streak 4 | . 4 2 . . 3 2 3 4 . . . . 1 . . . . . . 2 . Penetration Max . | . . . . . . . . . . . . . . . . . . . . . . Secondary Targets 3 | . 1 . . . 1 1 . . . . . . . . . . . . . . . Max Gunslinging Chain 1 | . 1 . . . 1 1 . . . . . . . . . . . . . . . Shots Hit Robots 301 | . 55 38 . 1 43 26 43 17 . 5 . . 6 1 8 . 3 . . 16 39 Core Hits 176 | . 23 19 . 1 27 11 25 11 . 7 . . 7 1 4 . 2 . . 17 21 Critical Hits 9 | . 1 . . . . . . . . . . . . . . . . . . 2 6 Critical Kills 4 | . 1 . . . . . . . . . . . . . . . . . . 2 1 Critical Parts Destroyed 5 | . . . . . . . . . . . . . . . . . . . . . 5 Melee Attacks 163 | . . . . . . 2 . . . 5 2 4 9 12 18 . 14 . 2 45 50 Impact . | . . . . . . . . . . . . . . . . . . . . . . Slashing 69 | . . . . . . 2 . . . 5 2 4 9 1 15 . 7 . . . 24 Piercing 94 | . . . . . . . . . . . . . . 11 3 . 7 . 2 45 26 Sneak Attacks 19 | . . . . . . . . . . 3 . . . 1 1 . . . . 3 11 Combat Hostiles 2 | . . . . . . . . . . 1 . . . . . . . . . 1 . Follow-up Attacks 2 | . . . . . . . . . . . . . . 1 1 . . . . . . Damage Inflicted 12632 | . 709 821 . 17 1410 433 1244 683 . 407 . . 470 113 483 . 415 . . 1312 4115 Guns 2808 | . 709 489 . 17 572 414 479 128 . . . . . . . . . . . . . Cannons 214 | . . . . . . . . 214 . . . . . . . . . . . . . Explosions 2992 | . . 332 . . 838 . 765 341 . . . . 255 . . . . . . 461 . Melee 6463 | . . . . . . . . . . 396 . . 215 113 483 . 415 . . 851 3990 Ramming 155 | . . . . . . 19 . . . 11 . . . . . . . . . . 125 Kinetic 2744 | . 536 464 . 17 572 414 464 277 . . . . . . . . . . . . . Thermal 488 | . 173 . . . 98 . 182 35 . . . . . . . . . . . . . Explosive 988 | . . 332 . . 401 . . . . . . . 255 . . . . . . . . Electromagnetic 1794 | . . 25 . . 339 . 598 371 . . . . . . . . . . . 461 . Impact . | . . . . . . . . . . . . . . . . . . . . . . Slashing 4219 | . . . . . . . . . . 396 . . 215 . 447 . 415 . . . 2746 Piercing 2244 | . . . . . . . . . . . . . . 113 36 . . . . 851 1244 Highest Corruption 35 | . . . . . . . . . 7 7 7 7 . . 7 7 16 17 17 . 35 Average Corruption 8 | . . . . . . . . . 7 7 7 7 . . 6 7 7 16 17 . 12 Corruption Purged . | . . . . . . . . . . . . . . . . . . . . . . Effects 93 | . . . . . . . . . 2 18 5 5 . . 8 1 25 2 13 . 14 Message Errors 16 | . . . . . . . . . 1 5 . 1 . . . . 4 1 2 . 2 Matter Fused 24 | . . . . . . . . . . 2 1 2 . . 4 . 10 . 4 . 1 Heat Flow Errors 9 | . . . . . . . . . 1 2 1 . . . . 1 2 . . . 2 Energy Discharges 12 | . . . . . . . . . . 1 2 1 . . 1 . 5 . . . 2 Parts Rejected 1 | . . . . . . . . . . . . . . . . . . . . . 1 Data Loss (minor) 12 | . . . . . . . . . . 6 . . . . 3 . 2 . . . 1 Data Loss (major) 2 | . . . . . . . . . . . 1 . . . . . 1 . . . . Misfires 1 | . . . . . . . . . . 1 . . . . . . . . . . . Misdirections 12 | . . . . . . . . . . . . . . . . . 1 1 7 . 3 Targeting Errors 4 | . . . . . . . . . . 1 . 1 . . . . . . . . 2 Overload Shots . | . . . . . . . . . . . . . . . . . . . . . . Overflow Damage 1346 | . . 17 . . 86 . 2 59 . 84 . . . . 23 . 104 . . 29 942 Projectiles 59 | . . . . . . . . 59 . . . . . . . . . . . . . Explosions 105 | . . 17 . . 86 . 2 . . . . . . . . . . . . . . Melee 1182 | . . . . . . . . . . 84 . . . . 23 . 104 . . 29 942 Knockbacks 3 | . . . . . . . . 2 . . . . . . . . . . . . 1 Impact 1 | . . . . . . . . . . . . . . . . . . . . . 1 Kinetic 2 | . . . . . . . . 2 . . . . . . . . . . . . . Secondary . | . . . . . . . . . . . . . . . . . . . . . . Self-Inflicted Damage 324 | . . 55 . . 79 . 95 . . 4 . . 29 . . . . . . . 62 Shots 9 | . . 1 . . 2 . 5 . . . . . 1 . . . . . . . . Rammed 11 | . . . . . . 1 . . . 7 . . . . . . . . . . 3 Targets Rammed 11 | . . . . . . 1 . . . 7 . . . . . . . . . . 3 Kicked . | . . . . . . . . . . . . . . . . . . . . . . Crushed . | . . . . . . . . . . . . . . . . . . . . . . Highest Temperature 303 | . 252 47 . 6 25 18 46 56 207 158 300 64 37 55 . 284 207 . . 303 220 Average Temperature 53 | . 62 13 . 4 6 9 10 19 105 40 60 22 4 19 . 155 106 . . 94 110 Received Heat Transfer 1743 | . 255 237 . . 279 135 342 90 . 18 . . 69 36 . 84 . . . 165 33 Effects 4 | . 3 . . . . . . . . . . . . . . 1 . . . . . Energy Bleed 3 | . 2 . . . . . . . . . . . . . . 1 . . . . . Interference 1 | . 1 . . . . . . . . . . . . . . . . . . . . Siege Activations . | . . . . . . . . . . . . . . . . . . . . . . Robots Corrupted 1 | . . . . . . . 1 . . . . . . . . . . . . . . Combat Hostiles 1 | . . . . . . . 1 . . . . . . . . . . . . . . Parts Fried 3 | . . . . . . . 1 . . . . . . . . . . . . 2 . Impact Corruptions 2 | . . . . . . . . . . . . . . . . . . . . . 2 Robots Melted . | . . . . . . . . . . . . . . . . . . . . . . Combat Hostiles . | . . . . . . . . . . . . . . . . . . . . . . Parts Melted 2 | . 1 . . . 1 . . . . . . . . . . . . . . . . Heat Transferred 994 | . 494 . . . 100 . 300 100 . . . . . . . . . . . . . Parts Sabotaged . | . . . . . . . . . . . . . . . . . . . . . . Parts Stolen . | . . . . . . . . . . . . . . . . . . . . . . Parts Stripped . | . . . . . . . . . . . . . . . . . . . . . . Power Chain Reactions 6 | . . . . . 2 . 3 1 . . . . . . . . . . . . . Missiles Intercepted . | . . . . . . . . . . . . . . . . . . . . . . Alert | -11 -10 -10 -10 -9 -8 -8 -8 -7 -7 -7 -7 -7 -6 -5 -4 -4 -4 -4 -3 -3 -3 ------- Run | Scr Mat Min Exi Min Mat Sto Gar Fac Was Fac Low Low Fac Fac Fac Upp Upp War Pro Res Qua Peak Influence 823 | . 230 117 . 5 376 635 823 652 148 140 . . 324 196 175 . . . . 202 215 Average Influence 213 | . 83 72 . 3 183 223 679 513 107 74 . . 140 159 114 . . . . 52 86 Maximum Alert Level 3 | . 1 . . . 1 2 3 2 . . . . 1 . . . . . . 1 1 Low Security (%) 69 | 100 98 100 . 100 49 39 . . 100 100 . . 65 100 100 . . . . 99 96 Level 1 9 | . 1 . . . 50 49 . . . . . . 34 . . . . . . . 3 Level 2 15 | . . . . . . 11 51 100 . . . . . . . . . . . . . Level 3 6 | . . . . . . . 48 . . . . . . . . . . . . . . Level 4 . | . . . . . . . . . . . . . . . . . . . . . . Level 5 . | . . . . . . . . . . . . . . . . . . . . . . High Security . | . . . . . . . . . . . . . . . . . . . . . . Max Security . | . . . . . . . . . . . . . . . . . . . . . . Squads Dispatched 17 | . . . . . 1 4 . 4 . 1 . . 1 1 . . . . . 3 2 Investigation 2 | . . . . . . . . . . . . . . 1 . . . . . 1 . Extermination 3 | . . . . . . . . 1 . . . . . . . . . . . . 2 Reinforcement 10 | . . . . . 1 3 . 2 . 1 . . 1 . . . . . . 2 . Assault 1 | . . . . . . . . 1 . . . . . . . . . . . . . Garrison 1 | . . . . . . 1 . . . . . . . . . . . . . . . Intercept . | . . . . . . . . . . . . . . . . . . . . . . Construction Impeded . | . . . . . . . . . . . . . . . . . . . . . . Haulers Reinforced 1 | . . . . . . . . . . . . . . . . . . . . 1 . Stealth | -11 -10 -10 -10 -9 -8 -8 -8 -7 -7 -7 -7 -7 -6 -5 -4 -4 -4 -4 -3 -3 -3 --------- Run | Scr Mat Min Exi Min Mat Sto Gar Fac Was Fac Low Low Fac Fac Fac Upp Upp War Pro Res Qua Distress Signals 7 | . 2 . . . 2 2 . . . . . . . 1 . . . . . . . Communications Jammed . | . . . . . . . . . . . . . . . . . . . . . . Distress Signals . | . . . . . . . . . . . . . . . . . . . . . . Times Spotted 215 | . 13 9 . . 19 19 17 12 6 5 . . 23 14 3 4 9 . 1 30 31 Peak Tracking Total 11 | . 5 3 . . 7 6 6 4 6 2 . . 6 10 2 4 6 . 1 10 11 Tactical Retreats 26 | . . . . . 1 2 2 1 . 1 . . 4 2 . . 4 . 1 6 2 Traps | -11 -10 -10 -10 -9 -8 -8 -8 -7 -7 -7 -7 -7 -6 -5 -4 -4 -4 -4 -3 -3 -3 ------- Run | Scr Mat Min Exi Min Mat Sto Gar Fac Was Fac Low Low Fac Fac Fac Upp Upp War Pro Res Qua Traps Triggered 4 | . . . . . . . 1 2 . . . . . . 1 . . . . . . Indirectly . | . . . . . . . . . . . . . . . . . . . . . . Trap Hack Attempts . | . . . . . . . . . . . . . . . . . . . . . . Triggered . | . . . . . . . . . . . . . . . . . . . . . . Disarmed . | . . . . . . . . . . . . . . . . . . . . . . Reprogrammed . | . . . . . . . . . . . . . . . . . . . . . . Reused 3 | . . . . . 3 . . . . . . . . . . . . . . . . Traps Extracted . | . . . . . . . . . . . . . . . . . . . . . . Installed 5 | . . . . 2 3 . . . . . . . . . . . . . . . . Triggered 4 | . . . . . 3 . . . . . . 1 . . . . . . . . . Exploded 3 | . . . . . 2 . . 1 . . . . . . . . . . . . . Machines | -11 -10 -10 -10 -9 -8 -8 -8 -7 -7 -7 -7 -7 -6 -5 -4 -4 -4 -4 -3 -3 -3 ---------- Run | Scr Mat Min Exi Min Mat Sto Gar Fac Was Fac Low Low Fac Fac Fac Upp Upp War Pro Res Qua Machines Disabled 10 | . 1 . . . 2 1 1 3 . . . . . . . . . . . . 2 Max in Single Turn 2 | . 1 . . . 1 . 1 2 . . . . . . . . . . . . 1 Garrison Access 5 | . . . . . . . . 2 . 1 . . 1 . . . . . . 1 . Garrison Relay 1 | . . . . . . . 1 . . . . . . . . . . . . . . Machines Sabotaged . | . . . . . . . . . . . . . . . . . . . . . . Garrisons Compromised . | . . . . . . . . . . . . . . . . . . . . . . Overloaded Fab Kills . | . . . . . . . . . . . . . . . . . . . . . . Fab Network Shutdowns . | . . . . . . . . . . . . . . . . . . . . . . Hacking | -11 -10 -10 -10 -9 -8 -8 -8 -7 -7 -7 -7 -7 -6 -5 -4 -4 -4 -4 -3 -3 -3 --------- Run | Scr Mat Min Exi Min Mat Sto Gar Fac Was Fac Low Low Fac Fac Fac Upp Upp War Pro Res Qua Machines Accessed 42 | . . 1 1 . . 5 . 1 . 8 . . 6 6 1 . 3 . . 6 4 Terminals 24 | . . . . . . 4 . . . 6 . . 3 2 1 . . . . 4 4 Fabricators 4 | . . . . . . . . . . 1 . . . 2 . . . . . 1 . Repair Stations 1 | . . . . . . . . . . . . . . 1 . . . . . . . Recycling Units . | . . . . . . . . . . . . . . . . . . . . . . Scanalyzers 2 | . . . . . . . . . . . . . 1 1 . . . . . . . Garrison Access 6 | . . . . . . 1 . 1 . 1 . . 2 . . . . . . 1 . Total Hacks 137 | . . 1 1 . . 18 . 1 . 29 . . 22 29 2 . 10 . . 13 11 Successful 76 | . . 1 1 . . 8 . 1 . 16 . . 10 15 1 . 10 . . 5 8 Failed 61 | . . . . . . 10 . . . 13 . . 12 14 1 . . . . 8 3 Catastrophic 12 | . . . . . . 1 . . . 3 . . 2 3 1 . . . . 2 . Database Lockouts . | . . . . . . . . . . . . . . . . . . . . . . Manual 58 | . . . . . . 9 . . . 15 . . 14 12 2 . . . . . 6 Terminals 84 | . . . . . . 15 . . . 21 . . 14 11 2 . . . . 10 11 Fabricators 20 | . . . . . . . . . . 7 . . . 11 . . . . . 2 . Repair Stations 4 | . . . . . . . . . . . . . . 4 . . . . . . . Recycling Units . | . . . . . . . . . . . . . . . . . . . . . . Scanalyzers 5 | . . . . . . . . . . . . . 2 3 . . . . . . . Garrison Access 12 | . . . . . . 3 . 1 . 1 . . 6 . . . . . . 1 . Terminal Hacks 36 | . . 1 1 . . 3 . . . 6 . . 3 4 . . 10 . . 3 5 Record 11 | . . . 1 . . . . . . . . . . . . . 8 . . 1 1 Part Schematic 3 | . . . . . . . . . . 2 . . . 1 . . . . . . . Robot Schematic 1 | . . . . . . . . . . . . . . . . . . . . 1 . Open Door 6 | . . 1 . . . 1 . . . . . . . . . . 2 . . 1 1 Level Access Points 1 | . . . . . . . . . . . . . . 1 . . . . . . . Locate Traps 7 | . . . . . . 1 . . . 1 . . 2 1 . . . . . . 2 Zone Layout 7 | . . . . . . 1 . . . 3 . . 1 1 . . . . . . 1 Fabricator Hacks 7 | . . . . . . . . . . 2 . . . 4 . . . . . 1 . Load Schematic 4 | . . . . . . . . . . 1 . . . 2 . . . . . 1 . Build 3 | . . . . . . . . . . 1 . . . 2 . . . . . . . Repair Station Hacks 2 | . . . . . . . . . . . . . . 2 . . . . . . . Scan Component 1 | . . . . . . . . . . . . . . 1 . . . . . . . Repair 1 | . . . . . . . . . . . . . . 1 . . . . . . . Recycling Unit Hacks . | . . . . . . . . . . . . . . . . . . . . . . Scanalyzer 4 | . . . . . . . . . . . . . 2 2 . . . . . . . Insert Component 2 | . . . . . . . . . . . . . 1 1 . . . . . . . Analyze 2 | . . . . . . . . . . . . . 1 1 . . . . . . . Garrison Access Hacks 5 | . . . . . . 1 . 1 . 1 . . 1 . . . . . . 1 . Unlock Access 1 | . . . . . . 1 . . . . . . . . . . . . . . . Seal Access 4 | . . . . . . . . 1 . 1 . . 1 . . . . . . 1 . Unauthorized Hacks 22 | . . . . . . 4 . . . 7 . . 4 3 1 . . . . . 3 Terminals 19 | . . . . . . 4 . . . 7 . . 2 2 1 . . . . . 3 Track 9 | . . . . . . 2 . . . 4 . . 1 1 . . . . . . 1 Botnet 10 | . . . . . . 2 . . . 3 . . 1 1 1 . . . . . 2 Fabricators 1 | . . . . . . . . . . . . . . 1 . . . . . . . Prioritize 1 | . . . . . . . . . . . . . . 1 . . . . . . . Repair Stations . | . . . . . . . . . . . . . . . . . . . . . . Recycling Units . | . . . . . . . . . . . . . . . . . . . . . . Scanalyzers . | . . . . . . . . . . . . . . . . . . . . . . Garrison Access 2 | . . . . . . . . . . . . . 2 . . . . . . . . Decoy 1 | . . . . . . . . . . . . . 1 . . . . . . . . Watchers 1 | . . . . . . . . . . . . . 1 . . . . . . . . Data Cores Recovered . | . . . . . . . . . . . . . . . . . . . . . . Used . | . . . . . . . . . . . . . . . . . . . . . . Hacking Detections 30 | . . . . . . 5 . . . 7 . . 4 5 1 . . . . 5 3 Full Trace Events 2 | . . . . . . . . . . . . . . 1 . . . . . 1 . Feedback Events . | . . . . . . . . . . . . . . . . . . . . . . Feedback Blocked . | . . . . . . . . . . . . . . . . . . . . . . Robot Schematics Acquired 1 | . . . . . . . . . . . . . . . . . . . . 1 . Robots Built . | . . . . . . . . . . . . . . . . . . . . . . Matter . | . . . . . . . . . . . . . . . . . . . . . . Time . | . . . . . . . . . . . . . . . . . . . . . . Total Robot Build Rating . | . . . . . . . . . . . . . . . . . . . . . . Part Schematics Acquired 5 | . . . . . . . . . . 2 . . 1 2 . . . . . . . Parts Built 6 | . . . . . . . . . . 2 . . . 4 . . . . . . . Matter 482 | . . . . . . . . . . 146 . . . 336 . . . . . . . Time 167 | . . . . . . . . . . 36 . . . 131 . . . . . . . Total Part Build Rating 22 | . . . . . . . . . . 6 . . . 16 . . . . . . . Parts Repaired 1 | . . . . . . . . . . . . . . 1 . . . . . . . Time 20 | . . . . . . . . . . . . . . 20 . . . . . . . Parts Recycled . | . . . . . . . . . . . . . . . . . . . . . . Recycled Matter . | . . . . . . . . . . . . . . . . . . . . . . Retrieved Matter . | . . . . . . . . . . . . . . . . . . . . . . Retrieved Components . | . . . . . . . . . . . . . . . . . . . . . . Parts Scanalyzed 2 | . . . . . . . . . . . . . 1 1 . . . . . . . Part Schematics Acquired 2 | . . . . . . . . . . . . . 1 1 . . . . . . . Parts Damaged 1 | . . . . . . . . . . . . . . 1 . . . . . . . Bothacking | -11 -10 -10 -10 -9 -8 -8 -8 -7 -7 -7 -7 -7 -6 -5 -4 -4 -4 -4 -3 -3 -3 ------------ Run | Scr Mat Min Exi Min Mat Sto Gar Fac Was Fac Low Low Fac Fac Fac Upp Upp War Pro Res Qua Used RIF Installer 1 | . . . . . . . 1 . . . . . . . . . . . . . . Robots Hacked . | . . . . . . . . . . . . . . . . . . . . . . Non-combat . | . . . . . . . . . . . . . . . . . . . . . . Combat . | . . . . . . . . . . . . . . . . . . . . . . Robot Hacks Applied . | . . . . . . . . . . . . . . . . . . . . . . Relay Couplers Released 5 | . . . . . . . 4 1 . . . . . . . . . . . . . Machine Destruction 5 | . . . . . . . 4 1 . . . . . . . . . . . . . Robots Rewired 1 | . . . . . . . . 1 . . . . . . . . . . . . . Allies Hacked . | . . . . . . . . . . . . . . . . . . . . . . Hacks Repelled . | . . . . . . . . . . . . . . . . . . . . . . Allies | -11 -10 -10 -10 -9 -8 -8 -8 -7 -7 -7 -7 -7 -6 -5 -4 -4 -4 -4 -3 -3 -3 -------- Run | Scr Mat Min Exi Min Mat Sto Gar Fac Was Fac Low Low Fac Fac Fac Upp Upp War Pro Res Qua Total Allies 19 | . . . . . . 10 . 1 1 . . . . . . . . . . . 7 Largest Group 10 | . . . . . . 10 4 1 1 . . . . . . . . . . . 7 Highest-Rated Group 173 | . . . . . . 173 77 21 31 . . . . . . . . . . . 100 Highest-Rated Ally 31 | . . . . . . 29 29 21 31 . . . . . . . . . . . 15 Total Orders 5 | . . . . . . . . . . . . . . 2 . 2 . . . 1 . EXPLORE 5 | . . . . . . . . . . . . . . 2 . 2 . . . 1 . Ally Attacks 178 | . . . . . . 88 31 17 7 . . . . . . . . . . . 35 Total Damage 2667 | . . . . . . 1121 349 175 129 . . . . . . . . . . . 893 Kills 21 | . . . . . . 15 4 2 . . . . . . . . . . . . . Allies Corrupted 2 | . . . . . . . . . . . . . . 2 . . . . . . . Allies Melted . | . . . . . . . . . . . . . . . . . . . . . . Intel | -11 -10 -10 -10 -9 -8 -8 -8 -7 -7 -7 -7 -7 -6 -5 -4 -4 -4 -4 -3 -3 -3 ------- Run | Scr Mat Min Exi Min Mat Sto Gar Fac Was Fac Low Low Fac Fac Fac Upp Upp War Pro Res Qua Robot Analysis Total . | . . . . . . . . . . . . . . . . . . . . . . Derelict Logs Recovered 5 | . . 1 . . . . . . . . 1 1 . . . 2 . . . . . Drone Launches 10 | . . . . . . . . . . . . . . 6 . 2 . . 2 . . Drone Recoveries . | . . . . . . . . . . . . . . . . . . . . . . Decoded 0b10 Intel 4 | . . . . . . . . . . . . . . . . . . . . 4 . Traps 1 | . . . . . . . . . . . . . . . . . . . . 1 . Emergency Access 2 | . . . . . . . . . . . . . . . . . . . . 2 . Garrisons 1 | . . . . . . . . . . . . . . . . . . . . 1 . Exploration | -11 -10 -10 -10 -9 -8 -8 -8 -7 -7 -7 -7 -7 -6 -5 -4 -4 -4 -4 -3 -3 -3 ------------- Run | Scr Mat Min Exi Min Mat Sto Gar Fac Was Fac Low Low Fac Fac Fac Upp Upp War Pro Res Qua Turns Passed 8755 | 48 519 635 208 63 466 593 901 497 101 524 184 133 266 283 303 227 947 13 191 757 896 Spaces Moved 8892 | 38 247 482 187 47 253 221 474 219 104 1017 479 373 706 481 318 323 931 41 400 840 711 Core 42 | 2 . . . . . . . . 2 8 . . . . . . . . . 4 26 Treads 931 | . . . . . 25 221 474 184 27 . . . . . . . . . . . . Legs 83 | . 83 . . . . . . . . . . . . . . . . . . . . Wheels 1282 | 36 164 482 187 47 228 . . 35 . . . . . . . . . . . . 103 Hover 2500 | . . . . . . . . . . 56 . . . . 191 323 889 . . 468 573 Flight 4054 | . . . . . . . . . 75 953 479 373 706 481 127 . 42 41 400 368 9 Fastest Speed 27 | 50 90 100 110 110 100 182 162 160 40 29 29 29 29 27 58 58 32 32 32 27 34 Average Speed 68 | 87 143 107 110 110 120 182 167 191 82 38 29 29 29 28 78 58 57 32 32 41 74 Slowest Speed 250 | 90 240 110 110 110 240 183 183 205 210 200 29 29 29 107 110 58 182 32 32 230 250 Overloaded Moves . | . . . . . . . . . . . . . . . . . . . . . . Propulsion Burnouts . | . . . . . . . . . . . . . . . . . . . . . . Robots Hopped 12 | . . . . . . . . . . 6 . . 2 1 . . . . . 3 . Cave-ins Triggered 1 | . . . . . . . . . . . . . . . . . 1 . . . . Exploration Rate (%) 42 | 3 40 91 51 12 21 51 74 8 75 24 71 37 26 29 9 70 85 10 55 28 54 Regions Visited 21 Branch Regions 11 Pre-discovered Areas 2 | . . . 1 . . . . . . . 1 . . . . . . . . . . Known Exits Taken 3 | . . . . . . 1 . . . . . . . 1 . . . . . 1 . Unknown Exits Taken 15 | 1 1 1 1 1 1 . . . . 1 1 1 1 . 1 1 1 1 1 . . Scrap Searched 12 | . . 3 . . . . . . . . 1 . . . . 3 2 . 3 . . Spaces Dug 57 | . . . . . . 2 . . . . . 4 3 7 4 . 9 . 2 23 3 Terrain Destroyed 165 | . . 36 . . 33 2 10 19 . . . 4 13 7 4 . 9 . 2 23 3 Melee 57 | . . . . . . 2 . . . . . 4 3 7 4 . 9 . 2 23 3 Projectile 1 | . . . . . . . . 1 . . . . . . . . . . . . . AOE 107 | . . 36 . . 33 . 10 18 . . . . 10 . . . . . . . . Actions | -11 -10 -10 -10 -9 -8 -8 -8 -7 -7 -7 -7 -7 -6 -5 -4 -4 -4 -4 -3 -3 -3 --------- Run | Scr Mat Min Exi Min Mat Sto Gar Fac Was Fac Low Low Fac Fac Fac Upp Upp War Pro Res Qua Total 10891 | 49 334 555 189 59 356 377 525 267 117 1131 519 390 749 612 343 362 1324 40 459 1163 971 Wait 1228 | . 14 19 . . 17 130 3 . 8 59 38 14 13 83 . 34 359 . 46 238 153 Move 8848 | 37 246 481 186 46 252 220 473 219 103 1004 478 372 701 478 317 322 929 40 399 834 711 Hop 11 | . . . . . . . . . . 6 . . 2 1 . . . . . 2 . Pick Up 101 | 6 13 4 3 3 17 . 4 6 1 10 . . 4 8 2 3 2 . . 6 9 Fast Attach 104 | 6 4 . . . 7 1 2 3 1 18 . . 3 10 6 . 1 . 4 13 25 Attach 56 | . 2 4 . . 4 . 4 4 4 3 . . 6 3 1 . 4 . 1 9 7 Detach 29 | . 1 . . . 2 . . 1 . 4 . . 4 3 1 . 1 . 2 6 4 Swap 60 | . 2 9 . 2 9 3 5 2 . 2 1 . 2 3 1 1 7 . 1 7 3 Drop 80 | . 4 8 . 5 11 4 . 2 . 13 . . 4 10 . 1 6 . 3 3 6 Fire 192 | . 48 30 . 1 34 16 32 25 . . . . 1 . . . . . . 5 . Melee 151 | . . . . . . 2 . . . 5 2 4 9 10 15 . 12 . 2 40 50 Ram 10 | . . . . . . . . . . 7 . . . . . . . . . . 3 Kick . | . . . . . . . . . . . . . . . . . . . . . . Crush 1 | . . . . . . 1 . . . . . . . . . . . . . . . Escape Stasis 3 | . . . . . . . 2 . . . . . . . . . 1 . . . . Rewire 7 | . . . . . . . . 5 . . . . . . . . 2 . . . . Trap 5 | . . . . 2 3 . . . . . . . . . . . . . . . . Miscellaneous 5 | . . . . . . . . . . . . . . 3 . 1 . . 1 . . Route ------- -11/Scrapyard -10/Materials -10/Mines (discovered 3 exits: [*Mat x2] / *Exi) -10/Exiles -9/Mines -8/Materials -8/Storage -8/Garrison (discovered 3 exits: *Fac x3) -7/Factory -7/Waste -7/Factory -7/Lower Caves -7/Lower Caves -6/Factory -5/Factory (discovered 5 exits: *Fac x4 / [*Upp]) -4/Factory (discovered 2 exits: [*Upp] / [*Ext]) -4/Upper Caves -4/Upper Caves (discovered 2 exits: *Res / [*War]) -4/Warlord -3/Proximity Caves -3/Research (discovered 2 exits: [Res] / *Qua) -3/Quarantine History --------- Turn | Location | Event 23 | -11/Scrapyard | Discovered new exit (range 16) 49 | -11/Scrapyard | Entered Materials 119 | -10/Materials | Discovered new exit (range 15) 257 | -10/Materials | Lost 3 parts (1n2w) 308 | -10/Materials | Build established: Mutant 568 | -10/Materials | Entered Mines 741 | -10/Mines | Met a Derelict who couldn't figure out how to use a Trap Extractor 892 | -10/Mines | Received a Rocket Launcher from a helpful Derelict 910 | -10/Mines | Learned Materials terminal intel 927 | -10/Mines | Discovered new exit (range 6) 1081 | -10/Mines | Core integrity fell below 50% 1086 | -10/Mines | Discovered new exit (range 14) 1198 | -10/Mines | Deemed a non-threat by the Exiles lab entrance 1199 | -10/Mines | Discovered new exit (range 5) 1203 | -10/Mines | Entered Exiles 1236 | -10/Exiles | Met 8R-AWN 1254 | -10/Exiles | Met EX-HEX 1298 | -10/Exiles | Met EX-DEC 1315 | -10/Exiles | Met EX-BIN 1337 | -10/Exiles | Learned location of Zion (-7) 1398 | -10/Exiles | Discovered new exit (range 10) 1411 | -10/Exiles | Entered Mines 1424 | -9/Mines | Discovered new exit (range 11) 1426 | -9/Mines | Found a hidden stash of uninstalled traps 1474 | -9/Mines | Entered Materials 1474 | -8/Materials | Evolved 4 slots: Propulsion x2, Utility x2 1475 | -8/Materials | Loaded intel: 12 terminal locations 1709 | -8/Materials | Lost 4 parts (2n1u1w) 1858 | -8/Materials | Discovered new exit (range 15) 1913 | -8/Materials | Build established: Hauler-Mutant 1940 | -8/Materials | Entered Storage 2375 | -8/Storage | Assisted by bots powering up and referring to "LRC-V3" 2395 | -8/Storage | Identified exit to Garrison 2454 | -8/Storage | Garrison activated, responded to threat 2533 | -8/Storage | Entered Garrison 2533 | -8/Garrison | Accompanied by 4 allies 2570 | -8/Garrison | Triggered checkpoint 2615 | -8/Garrison | Triggered checkpoint 2717 | -8/Garrison | Lost 4 parts (1p1n1u1w) 2747 | -8/Garrison | Discovered new exit (range 13) 2870 | -8/Garrison | Triggered checkpoint 2928 | -8/Garrison | Discovered new exit (range 10) 2958 | -8/Garrison | Build established: Scavenger-Mutant 3160 | -8/Garrison | Triggered checkpoint 3194 | -8/Garrison | Discovered new exit (range 12) 3223 | -8/Garrison | Installed Relay Interface Framework 3266 | -8/Garrison | Triggered checkpoint 3323 | -8/Garrison | Core integrity fell below 50% 3334 | -8/Garrison | Lost 3 parts (1n2w) 3361 | -8/Garrison | Garrison Relay disabled 3434 | -8/Garrison | Entered Factory 3434 | -7/Factory | Evolved 2 slots: Power x1, Utility x1 3586 | -7/Factory | Build established: Hauler-Mutant 3931 | -7/Factory | Sucked down chute 3931 | -7/Factory | Entered Waste 3932 | -7/Waste | Met a frightened Derelict 3946 | -7/Waste | EMP discharged 3950 | -7/Waste | Spotted C-40 Crusher 3966 | -7/Waste | Spotted C-40 Crusher 3970 | -7/Waste | Spotted C-40 Crusher 3975 | -7/Waste | Spotted C-40 Crusher 3978 | -7/Waste | Crushed by Compactor (1 part destroyed, 2 dropped) 3979 | -7/Waste | Spotted C-40 Crusher 3981 | -7/Waste | Crushed by Compactor (1 part destroyed, 2 dropped) 3984 | -7/Waste | Spotted C-40 Crusher 3986 | -7/Waste | Crushed by Compactor (1 part destroyed, 2 dropped) 3987 | -7/Waste | Crushed by Compactor (1 part destroyed, 2 dropped) 3989 | -7/Waste | Crushed by Compactor (1 part destroyed, 1 dropped) 3990 | -7/Waste | Crushed by Compactor (1 part destroyed, 1 dropped) 4021 | -7/Waste | Lost 6 parts (2n3u1w) 4022 | -7/Waste | Discovered new exit (range 13) 4032 | -7/Waste | Entered Factory 4367 | -7/Factory | Discovered new exit (range 2) 4368 | -7/Factory | Build established: Hacker-Mutant 4543 | -7/Factory | Fabricated Cesium-ion Thruster (x2) 4556 | -7/Factory | Entered Lower Caves 4648 | -7/Lower Caves | Spotted B-75 Beast 4717 | -7/Lower Caves | Discovered new exit (range 13) 4740 | -7/Lower Caves | Entered another Lower Caves area 4790 | -7/Lower Caves | Encountered a Warlord checkpoint 4791 | -7/Lower Caves | Learned Factory terminal intel 4851 | -7/Lower Caves | Discovered new exit (range 6) 4873 | -7/Lower Caves | Entered Factory 4873 | -6/Factory | Evolved 2 slots: Utility x2 4874 | -6/Factory | Loaded intel: 20 terminal locations 4970 | -6/Factory | Build established: Hacker-Sprinter 5130 | -6/Factory | Discovered new exit (range 8) 5139 | -6/Factory | Entered another Factory area 5139 | -5/Factory | Evolved 2 slots: Propulsion x1, Utility x1 5228 | -5/Factory | Fabricated Nuclear Pulse Thruster (x2) 5231 | -5/Factory | Discovered new exit (range 92) 5257 | -5/Factory | Discovered new exit (range 98) 5277 | -5/Factory | Identified exit to Factory 5317 | -5/Factory | Repaired Broken Lrn. Sensor Array 5386 | -5/Factory | Fabricated Imp. Propulsion Shielding (x2) 5422 | -5/Factory | Entered another Factory area 5422 | -4/Factory | Evolved 2 slots: Propulsion x1, Utility x1 5452 | -4/Factory | Lost 4 parts (1p3n) 5619 | -4/Factory | Found Enh. Force Lance 5681 | -4/Factory | Build established: Hacker-Mutant 5689 | -4/Factory | Discovered new exit (range 5) 5692 | -4/Factory | Discovered new exit (range 16) 5725 | -4/Factory | Entered Upper Caves 5829 | -4/Upper Caves | Learned 4 Research zone layouts 5934 | -4/Upper Caves | Discovered new exit (range 16) 5952 | -4/Upper Caves | Entered another Upper Caves area 6034 | -4/Upper Caves | Discovered new exit (range 5) 6272 | -4/Upper Caves | Learned 8 Factory zone layouts 6272 | -4/Upper Caves | Learned Extension emergency access door positions 6272 | -4/Upper Caves | Learned Factory stockpile data 6272 | -4/Upper Caves | Learned Research stockpile data 6727 | -4/Upper Caves | Build established: Scavenger-Ninja 6832 | -4/Upper Caves | Crushed by falling debris 6833 | -4/Upper Caves | System corruption reached 10% 6857 | -4/Upper Caves | Discovered new exit (range 12) 6863 | -4/Upper Caves | Lost 4 parts (3n1u) 6899 | -4/Upper Caves | Entered Warlord 6910 | -4/Warlord | Discovered new exit (range 9) 6912 | -4/Warlord | Entered Proximity Caves 6975 | -3/Proximity Caves | Attracted the attention of an 0b10 checkpoint 7069 | -3/Proximity Caves | Discovered new exit (range 19) 7103 | -3/Proximity Caves | Entered Research 7103 | -3/Research | Accompanied by 2 allies 7103 | -3/Research | Evolved 2 slots: Power x1, Propulsion x1 7104 | -3/Research | Identified exit to Quarantine 7215 | -3/Research | Build established: Hacker-Ninja 7294 | -3/Research | Spotted B-86 Titan 7302 | -3/Research | Found Prototype Processor 7823 | -3/Research | Found Gamma Bomb Array 7825 | -3/Research | Discovered new exit (range 17) 7842 | -3/Research | Identified Exp. Melee Analysis Suite 7860 | -3/Research | Entered Quarantine 7883 | -3/Quarantine | Lost 14 parts (4p5n4u1w) 7909 | -3/Quarantine | Found Alien Slashing Weapon 7909 | -3/Quarantine | Identified Sigix Broadsword 8272 | -3/Quarantine | Found Alien Artifact 8272 | -3/Quarantine | Identified Core Reset Matrix 8272 | -3/Quarantine | Used Core Reset Matrix 8276 | -3/Quarantine | Detected hypermatrix surge 8276 | -3/Quarantine | Sensed 14 artifacts in vicinity 8320 | -3/Quarantine | Met incapacitated Sigix Warrior 8320 | -3/Quarantine | Lockdown squad dispatched 8323 | -3/Quarantine | Acquired the access code to the Sigix quarantine chamber 8325 | -3/Quarantine | Unlocked Sigix quarantine chamber 8456 | -3/Quarantine | Core integrity fell below 50% 8469 | -3/Quarantine | Lost 4 parts (3p1w) 8550 | -3/Quarantine | Spotted Lightning 8550 | -3/Quarantine | Spotted Lightning 8554 | -3/Quarantine | Spotted Lightning 8556 | -3/Quarantine | System corruption reached 10% 8565 | -3/Quarantine | Emitted hypermatrix ping 8570 | -3/Quarantine | Assembled emerged from beneath the floor 8592 | -3/Quarantine | Lost 4 parts (1p2n1u) 8690 | -3/Quarantine | Core integrity fell below 20% 8732 | -3/Quarantine | Build established: Hacker-Mutant 8742 | -3/Quarantine | System corruption reached 30% 8756 | -3/Quarantine | Destroyed by P-80 Master with Gamma Rifle Last Messages --------------- 08735_ System corrupted: Gyrokinetic Inverter rejected. 08735_ Acquired Gyrokinetic Inverter. 08738_ Identified Antigrav System. 08741_ Mic. Fission Core destroyed. 08741_ Slammed into P-80 Master. 08741_ Destroyed Adv. Heat Sink. 08741_ P-80 Master system corrupted by crushing effect. 08741_ P-80 Master knocked back. 08741_ Adv. Hacking Suite destroyed. 08741_ Antigrav System destroyed. 08741_ System corrupted by crushing effect (+5). 08743_ Imp. Antigrav System destroyed. 08744_ P-80 Master misfires. 08745_ P-80 Master resets P-80 Master, system corruption cleaned. 08752_ System corrupted: Energy discharge (-62). 08754_ P-80 Master resets K-01 Serf, system corruption cleaned. 08755_ EMDS Slug penetrates I-47 Archangel. 08755_ Penetrated by EMDS Slug. 08755_ Hcp. Storage Unit destroyed. 08755_ Lgt. Antimatter Reactor destroyed. Map ----- +----------------------------------------------------+ | ?????#"" ""#????????????##/###### # """#????? | | ?????#"" ""#??????????# ## #? #????? | | ?????#""" """#??????????# """ ## #? ! #????? | | ?????#"" ""#??????????# """ ! ## #??####????? | | ?????#""T T""#??????????# """ ## #??????????? | | ?????#### ####??????????# ## #??????????? | | ???????#T #?????????????# """ ## #??????????? | | ?######## ########??????# """ = ## #??######??? | | ?# # # #??????# """ ## #?? !#??? | | ?# ! # !# #??????# [## ## """ #??? | | ?# ! =+ =%+ #??#########+#### # """" #??? | | ?# = # [# #??# + """" #??? | | ?# # # #??# ### # """ #??? | | ?# ! # =# #??# #?## ##! #??? | | ?######## %####+###??# p###+####### #??######??? | | ????????# =[# #??# # [=% = ## #??????????? | | ????????# # #??# # !!!% ## #??????????? | | ????????# + #??# # !!! ## #??????????? | | ????????# # ##?#k # !! ## #??????????? | | ????????# # ##?# # [ ]## ###????????? | | ????????# # !##?# # ## #????????? | | ?######## ########??# # """ ## #????????? | | ?# # #?????????# # """S"" ######????????? | | ?# # #?????????# # """""" #?????????????? | | ?# + ![########### !##########?????????????? | | ?# # %%%*% i [@#??????????????????????? | | ?# # !%[%%h h ]#??????????????????????? | | ?# /%!!!=[h[ #??????????????????????? | | ?#########/############ #??????????????????????? | | ?????????#% % #??????# #??????????????????????? | | ?????????# = #??????# R #??????????????????????? | | ?????????#"" ""#??????# +??????????????????????? | | ?????????#"""""#??????# #??????????????????????? | | ?????????#"""""#??????# #??]???????????????????? | | ?????????#######??????# #??????????????????????? | | ??????????????????????# #??????????????????????? | | ??????????????????????# #??????????????????????? | | ??????????????????????# #??????????????????????? | | ??????????????????????C= #??????????????????????? | | ??????????????????????#%! #??????????????????????? | | ??????????????????????? #??????????????????????? | | ?????????????????????????????????????????????????? | | ?????????????????????????????????????????????????? | | ?????????????????????????????????????????????????? | | ?????????????????????????????????????????????????? | | ?????????????????????????????????????????????????? | | ?????????????????????????????????????????????????? | | ?????????????????????????????????????????????????? | | ?????????????????????????????????????????????????? | | ?????????????????????????????????????????????????? | +----------------------------------------------------+ Best States ------------- Heat Dissipation 88 Energy Generation 50 Energy Capacity 450 Matter Stores 300 Matter Capacity 300 Sight Range 16 Robot Scan Range 20 Terrain Scan Range 20 Terrain Scan Density 410 ECM Strength 3 Cloak Strength 2 Armor Coverage 450 Resistance: EM 25 Propulsion Shielding 66 Utility Shielding 33 Reclamation Efficiency 15 Evasion (%) 70 Targeting Accuracy 8 Melee Accuracy 20 Core Analysis 10 Recoil Reduction 4 Offensive Hacking 28 Defensive Hacking 36 Item Schematics ----------------- None Robot Schematics ------------------ None Fabricated ------------ Cesium-ion Thruster | x2 | -7/Factory Nuclear Pulse Thruster | x2 | -5/Factory Imp. Propulsion Shielding | x2 | -5/Factory Alien Tech Used ----------------- Sigix Broadsword Core Reset Matrix Achievements -------------- None Challenges ------------ None Game ------ Seed SurveybotBurstGun Manual? 0 Play Time 01:49:42 Cumulative 108.0 hours Start 2020.06.21 @ 15:11:24 End 2020.06.29 @ 13:38:36 Sessions 6 Manual Loads 0 Difficulty Rogue Special Mode None Game No. 92 Rogue 92 Adventurer 0 Explorer 0 Win Type - Total 11 Types 11/0/0/0/0/0/0 Lore% 71 Gallery% 73 Achievement% 58 Wizard Run 0 Options --------- ASCII 0 Keyboard 0 Movement Vi Keybinds 0 Fullscreen 2 Font 18/SmallcapsGlow Map View 76x50 Tactical HUD 1 Map Filters NONE Filters NONE Steam 0 RUN: 657955b4-7ed6-44af-b448-19b2fe0ba6a5